fUSD/lending_fUSD_20250202
["ID","MTS","AMOUNT","RATE_DAILY","PERIOD"]
[351227889,1738454431846,150.0,0.00021834,120]
[351227890,1738454490825,150.0,0.00022543,120]
[351227892,1738454579090,774.30326074,0.00023,120]
[351227893,1738454590431,500.0,0.00023,120]
[351227894,1738454593342,994.184011,0.00023,120]
[351227895,1738454602108,200.0,0.00023,120]
[351227896,1738454611284,150.0,0.00022201,120]
[351227897,1738454632036,500.0,0.00022739,120]
[351227898,1738454632634,372.56670247,0.00022739,120]
[351227899,1738454633411,156.46,0.00010137,2]
[351227901,1738454643280,208.65976059,0.00023,120]
[351227902,1738454655294,1333.0,0.00021781,120]
[351227903,1738454670773,150.0,0.00020909,120]
[351227904,1738454703192,4057.0,0.00023,120]
[351227905,1738454731663,150.0,0.00020642,120]
[351227906,1738454790744,150.0,0.00020686,120]
[351227907,1738454817859,344.80225952,0.00016438,120]
[351228031,1738454851297,150.0,0.00018137,120]
[351228033,1738454912411,150.0,0.00022109,120]
[351228034,1738454970845,150.0,0.00020582,120]
[351228036,1738455030759,150.0,0.00019777,120]
[351228052,1738455031724,-411.96,0.00013243,2]
[351228053,1738455031733,-900.0,0.00013948,2]
[351228054,1738455031744,-500.0,0.00013948,2]
[351228055,1738455031754,-1782.37,0.00015136,2]
[351228056,1738455031763,-308.08,0.00015146,2]
[351228057,1738455031773,-1000.0,0.00015152,2]
[351228058,1738455031782,-207.83358885,0.00015165,2]
[351228059,1738455031794,-61.83641115,0.00015165,2]
[351228060,1738455031804,-605.89,0.00015169,2]
[351228061,1738455031814,-900.0,0.00015318,2]
[351228062,1738455031965,-150.0,0.00015343,2]
[351228063,1738455031975,-150.0,0.00015343,2]
[351228064,1738455031985,-411.96,0.00015507,2]
[351228065,1738455031994,-150.99,0.00015507,2]
[351228066,1738455032005,-2643.76575624,0.00016,2]
[351228067,1738455032016,-575.115,0.00016,2]
[351228068,1738455032056,-548.11924376,0.00016,2]
[351228069,1738455032065,-299.99,0.00016,2]
[351228070,1738455032075,-999.99,0.00016,2]
[351228071,1738455032084,-500.0,0.00016063,2]
[351228072,1738455032094,-2363.1333429,0.00016092,2]
[351228073,1738455032105,-7926.90545055,0.00016092,2]
[351228074,1738455032116,-4136.7137717,0.00016092,2]
[351228075,1738455032127,-514.98783939,0.00016092,2]
[351228076,1738455032138,-652.22375222,0.00016092,2]
[351228079,1738455032171,-3409.40237569,0.00016092,2]
[351228088,1738455032384,-51879.77035238,0.00016092,2]
[351228089,1738455032393,-2960.27846547,0.000161,2]
[351228090,1738455032423,-9984.88570987,0.000161,2]
[351228091,1738455032431,-1028.567,0.000161,2]
[351228092,1738455032440,-161.66214093,0.000161,2]
[351228093,1738455032450,-5000.0,0.000161,2]
[351228094,1738455032460,-2102.79414174,0.000161,2]
[351228095,1738455032468,-692.74914142,0.000161,2]
[351228096,1738455032477,-161.91076024,0.000161,2]
[351228097,1738455032486,-1138.04514066,0.00016109,2]
[351228098,1738455032495,-2127.03,0.00016116,2]
[351228099,1738455032504,-10290.03879337,0.00016119,2]
[351228100,1738455032513,-275.66323198,0.00016122,2]
[351228101,1738455032523,-2102.79414172,0.00016126,2]
[351228102,1738455032531,-150.0,0.00016127,2]
[351228103,1738455032541,-150.0,0.0001613,2]
[351228104,1738455032551,-10290.03879337,0.00016147,2]
[351228105,1738455032561,-2102.79414172,0.00016153,2]
[351228106,1738455032572,-150.0,0.00016154,2]
[351228107,1738455032581,-500.0,0.00016173,2]
[351228108,1738455032590,-487.17682621,0.00016173,2]
[351228109,1738455032600,-3000.0,0.00016174,3]
[351228110,1738455032609,-10290.03879337,0.00016174,2]
[351228111,1738455032620,-2102.79414172,0.00016179,2]
[351228112,1738455032630,-1396.7159467,0.00016181,2]
[351228113,1738455032639,-728.8107204,0.00016181,2]
[351228114,1738455032648,-1585.7361776,0.00016189,2]
[351228115,1738455032657,-827.4420642,0.00016189,2]
[351228116,1738455032666,-1274.5058648,0.00016191,5]
[351228117,1738455032675,-377.09,0.00016191,2]
[351228118,1738455032683,-27619.47332881,0.00016192,2]
[351228119,1738455032694,-63058.43746773,0.00016192,2]
[351228120,1738455032718,-2903.09565537,0.00016192,2]
[351228121,1738455032736,-16154.47562811,0.00016192,2]
[351228122,1738455037609,-794.17380999,0.00016192,2]
[351228123,1738455037655,-2077.21538702,0.00016192,2]
[351228124,1738455037666,-1235.0,0.00016192,2]
[351228125,1738455037677,-316.12573255,0.00016192,2]
[351228126,1738455037710,-1035.5,0.00016192,2]
[351228127,1738455037721,-121462.89247411,0.00016192,2]
[351228128,1738455037764,-20580.84904632,0.00016192,2]
[351228129,1738455037775,-3096.82805432,0.00016192,2]
[351228130,1738455037787,-206785.6462021,0.00016192,2]
[351228131,1738455037798,-811.5296639,0.00016192,2]
[351228132,1738455037819,-295598.75157011,0.00016192,2]
[351228133,1738455037829,-242.11647656,0.00016192,2]
[351228134,1738455037838,-6651.13195327,0.00016192,2]
[351228135,1738455037849,-10384.0,0.00016192,2]
[351228204,1738455039750,-2633.2924111,0.00016192,2]
[351228206,1738455039761,-1986.41112024,0.00016192,2]
[351228208,1738455039779,-27426.73516892,0.00016192,2]
[351228297,1738455042797,-36101.24246374,0.00016192,2]
[351228298,1738455042997,-202661.94463662,0.00016192,2]
[351228306,1738455045734,-20.69476762,0.00016192,2]
[351228331,1738455046175,-252.71462698,0.00016192,2]
[351228344,1738455046287,-1237.2,0.00016192,2]
[351228346,1738455046299,-315.44099208,0.00016192,2]
[351228350,1738455046332,-65615.03019724,0.00016192,2]
[351228352,1738455046343,-125864.1984,0.00016192,2]
[351228354,1738455046354,-54382.5,0.00016192,2]
[351228357,1738455046366,-43200.90776407,0.00016192,2]
[351228359,1738455046379,-683.56786848,0.00016192,2]
[351229106,1738455091335,150.0,0.0002152,120]
[351229107,1738455150865,150.0,0.00021003,120]
[351229108,1738455191563,500.0,0.00023,120]
[351229109,1738455199455,500.0,0.00023,120]
[351229110,1738455208923,200.0,0.00023,120]
[351229111,1738455210725,150.0,0.00022074,120]
[351229113,1738455251831,5614.8408715,2e-05,2]
[351229114,1738455270753,150.0,0.00021162,120]
[351229115,1738455330988,150.0,0.00021359,120]
[351229116,1738455390743,150.0,0.00021757,120]
[351229117,1738455417895,292.0,0.00023,120]
[351229118,1738455435905,660.5084983,0.00021781,120]
[351229119,1738455451250,150.0,0.00022112,120]
[351229120,1738455481829,161.91,0.00010137,2]
[351229122,1738455511824,150.0,0.00020185,120]
[351229124,1738455570759,150.0,0.0002071,120]
[351229125,1738455631317,150.0,0.00020383,120]
[351229126,1738455634667,385.89,0.00012799,2]
[351229127,1738455691419,150.0,0.00018574,120]
[351229128,1738455712754,1225.06390225,0.00021457,120]
[351229129,1738455751265,150.0,0.00021082,120]
[351229130,1738455789726,500.0,0.00023,120]
[351229131,1738455797675,500.0,0.00023,120]
[351229132,1738455804859,200.0,0.00023,120]
[351229133,1738455811807,150.0,0.00020393,120]
[351229134,1738455870777,150.0,0.00021918,120]
[351229135,1738455908068,877550.4899771,0.00012,2]
[351229136,1738455927197,1161.07146123,0.00023,120]
[351229137,1738455931304,150.0,0.00022929,120]
[351229139,1738455932616,173.49948709,0.0002,120]
[351229140,1738455944443,285.05019669,0.00022,120]
[351229141,1738455991268,150.0,0.00021532,120]
[351229143,1738456032138,1192.32443339,0.00023,120]
[351229271,1738456050876,150.0,0.00021525,120]
[351229295,1738456067915,230.26876664,0.0002,120]
[351229296,1738456070755,367.22528676,0.0002,120]
[351229297,1738456111313,150.0,0.00021969,120]
[351229298,1738456121790,202.0,0.0002,120]
[351229301,1738456124619,800.0,0.00021,120]
[351229302,1738456124981,420.78009118,0.00022,120]
[351229303,1738456125168,448.43503995,0.00022,120]
[351229304,1738456125233,195.78,0.0002,120]
[351229316,1738456170716,150.0,0.00019752,120]
[351229318,1738456230726,150.0,0.00019054,120]
[351229331,1738456231831,-231.0,0.0001349,2]
[351229332,1738456231841,-231.0,0.000137,2]
[351229333,1738456232021,-231.0,0.0001391,2]
[351229334,1738456232032,-500.0,0.00013948,2]
[351229335,1738456232042,-800.0,0.00013948,2]
[351229336,1738456232052,-914.7188138,0.0001402,2]
[351229337,1738456232063,-231.0,0.0001412,2]
[351229338,1738456232073,-914.7188138,0.0001423,2]
[351229339,1738456232083,-231.0,0.0001433,2]
[351229340,1738456232092,-2501.17,0.00014459,2]
[351229341,1738456232104,-231.0,0.0001454,2]
[351229342,1738456232114,-187.93,0.00014605,2]
[351229343,1738456232123,-1000.0,0.00014605,2]
[351229344,1738456232133,-18382.36,0.00014673,2]
[351229345,1738456232143,-420.0,0.00014678,2]
[351229346,1738456232153,-231.0,0.0001475,2]
[351229347,1738456232163,-399.71,0.00014772,2]
[351229348,1738456232173,-231.0,0.0001496,2]
[351229349,1738456232183,-385.89,0.00015063,2]
[351229350,1738456232194,-505.0,0.00015178,2]
[351229351,1738456232203,-231.0,0.0001518,2]
[351229352,1738456232213,-169.88,0.00015221,2]
[351229353,1738456232223,-800.0,0.00015318,2]
[351229354,1738456232234,-187.93,0.00015335,2]
[351229355,1738456232245,-231.0,0.0001539,2]
[351229356,1738456232258,-200.0,0.000155,5]
[351229357,1738456232268,-152.0,0.0001555,3]
[351229358,1738456232278,-231.0,0.000156,2]
[351229359,1738456232288,-500.0,0.000156,5]
[351229360,1738456232298,-150.0,0.000156,2]
[351229361,1738456232308,-700.0,0.000157,5]
[351229362,1738456232318,-1000.0,0.000158,5]
[351229363,1738456232330,-231.0,0.0001581,2]
[351229364,1738456232340,-1200.0,0.000159,5]
[351229365,1738456232353,-150.0,0.00015926,2]
[351229366,1738456232367,-152.0,0.00015972,4]
[351229367,1738456232379,-1000.0,0.00015991,2]
[351229368,1738456232390,-42838.96237211,0.00015992,2]
[351229369,1738456232421,-1006.1552966,0.00015992,2]
[351229370,1738456232892,-255.97559429,0.00015992,2]
[351229371,1738456232904,-287.48940261,0.00015992,2]
[351229372,1738456232937,-255.0,0.00015992,2]
[351229373,1738456233010,-667.83262828,0.00015992,2]
[351229374,1738456233021,-325.51409,0.00015992,2]
[351229375,1738456233183,-302.840001,0.00015992,2]
[351229376,1738456233196,-871.53695397,0.00015992,2]
[351229377,1738456233214,-18837.98783675,0.00015992,2]
[351229378,1738456233225,-75322.59416515,0.00015992,2]
[351229379,1738456233234,-44526.26380988,0.00015999,2]
[351229380,1738456233249,-3023.7,0.00015999,2]
[351229381,1738456233271,-738.28,0.00015999,2]
[351229382,1738456233283,-1351.99052351,0.00015999,2]
[351229412,1738456237758,-171.65678645,0.00015965,2]
[351229413,1738456237768,-11487.88956107,0.00015999,2]
[351229414,1738456237811,-515.45359909,0.00015999,2]
[351229415,1738456237822,-2766.81376679,0.00015999,2]
[351229416,1738456237834,-437.83640513,0.00015999,2]
[351229417,1738456237931,-422.97571748,0.00015999,2]
[351229418,1738456237942,-10086.27032658,0.00015999,2]
[351229419,1738456237953,-3612.0,0.00016,2]
[351229420,1738456237962,-150.0,0.00016003,2]
[351229421,1738456237972,-231.0,0.0001602,2]
[351229422,1738456237982,-1271.0,0.00016027,2]
[351229423,1738456237991,-2021.0,0.00016027,2]
[351229424,1738456238001,-150.0,0.00016027,2]
[351229425,1738456238010,-637.0,0.00016027,2]
[351229426,1738456238020,-568.0,0.00016027,2]
[351229427,1738456238029,-1866.0,0.00016027,2]
[351229428,1738456238038,-2951.0,0.00016027,2]
[351229430,1738456238047,-1263.0,0.00016027,2]
[351229432,1738456238057,-907.0,0.00016027,2]
[351229434,1738456238065,-614.0,0.00016027,2]
[351229436,1738456238074,-538.0,0.00016027,2]
[351229438,1738456238084,-272.77530803,0.00016027,2]
[351229440,1738456238093,-272.77530802,0.00016027,2]
[351229442,1738456238103,-4000.0,0.0001603,2]
[351229444,1738456238114,-4000.0,0.0001603,2]
[351229446,1738456238123,-7233.15860382,0.00016059,2]
[351229447,1738456238132,-500.0,0.00016063,2]
[351229448,1738456238141,-187.93,0.00016065,2]
[351229449,1738456238150,-150.0,0.00016074,2]
[351229450,1738456238159,-1892.5,0.00016092,2]
[351229451,1738456238172,-1395.067457,0.00016092,2]
[351229452,1738456238187,-367.81,0.00016092,2]
[351229453,1738456238206,-3320.17409495,0.000161,2]
[351229458,1738456239780,-171.65678645,0.00016092,2]
[351229459,1738456239790,-250.60157986,0.000161,2]
[351229460,1738456239851,-1068.85270676,0.000161,2]
[351229461,1738456239864,-56360.37161843,0.000161,2]
[351229462,1738456239873,-157.63265749,0.000161,2]
[351229463,1738456239882,-174.2615926,0.000161,2]
[351229464,1738456239892,-3734.65771759,0.000161,2]
[351229465,1738456239901,-984.9834438,0.000161,2]
[351229466,1738456239910,-7233.15860382,0.00016106,2]
[351229467,1738456239920,-150.0,0.00016108,2]
[351229468,1738456239929,-150.0,0.00016108,2]
[351229469,1738456239938,-6606.1,0.00016116,2]
[351229470,1738456239947,-9999.99,0.00016116,2]
[351229471,1738456239957,-9999.99,0.00016116,2]
[351229472,1738456239966,-30353.55,0.00016116,2]
[351229473,1738456239975,-150.99,0.00016116,2]
[351229474,1738456239985,-299.99,0.00016116,4]
[351229475,1738456239994,-999.99,0.00016116,2]
[351229476,1738456240003,-150.99,0.00016116,2]
[351229477,1738456240013,-2062.47,0.00016116,2]
[351229478,1738456240022,-150.0,0.00016119,2]
[351229479,1738456240031,-1395.06745699,0.00016119,2]
[351229480,1738456240041,-150.0,0.00016121,2]
[351229481,1738456240051,-150.0,0.00016126,2]
[351229482,1738456240060,-150.0,0.00016126,2]
[351229483,1738456240070,-150.0,0.00016133,2]
[351229484,1738456240079,-926.928,0.00016139,2]
[351229485,1738456240089,-150.0,0.00016144,2]
[351229486,1738456240099,-1395.06745699,0.00016147,2]
[351229487,1738456240109,-7233.15860382,0.00016152,2]
[351229488,1738456240119,-150.0,0.00016155,2]
[351229489,1738456240128,-150.0,0.00016163,2]
[351229490,1738456240138,-150.0,0.00016165,2]
[351229491,1738456240147,-150.0,0.00016166,2]
[351229492,1738456240156,-150.0,0.00016169,2]
[351229493,1738456240166,-500.0,0.00016173,2]
[351229494,1738456240176,-1395.06745699,0.00016174,2]
[351229496,1738456240185,-150.0,0.0001618,2]
[351229497,1738456240195,-150.0,0.00016181,2]
[351229498,1738456240204,-484.3812633,0.00016181,2]
[351229499,1738456240213,-808.9747341,0.00016181,2]
[351229500,1738456240223,-695.33879,0.00016181,2]
[351229501,1738456240233,-485.8109021,0.00016181,2]
[351229502,1738456240242,-150.0,0.00016183,2]
[351229503,1738456240254,-587.7040498,0.00016189,2]
[351229504,1738456240263,-981.5361647,0.00016189,2]
[351229505,1738456240273,-843.6606736,0.00016189,2]
[351229506,1738456240283,-589.4386431,0.00016189,2]
[351229507,1738456240292,-500.0,0.00016189,2]
[351229508,1738456240301,-500.0,0.00016189,2]
[351229509,1738456240311,-500.0,0.00016189,2]
[351229510,1738456240321,-571.47968632,0.00016189,2]
[351229511,1738456240330,-4000.0,0.0001619,2]
[351229512,1738456240339,-722087.29449289,0.0001619,4]
[351229513,1738456240349,-300.0,0.00016191,2]
[351229514,1738456240359,-666.0,0.00016191,2]
[351229515,1738456240368,-520493.96293378,0.00016192,2]
[351229516,1738456240377,-2606.88080197,0.00016192,2]
[351229517,1738456240387,-200.83844277,0.00016192,2]
[351229519,1738456240396,-4993223.75578813,0.00016192,2]
[351229521,1738456240481,-79252.0,0.00016192,2]
[351229522,1738456240493,-25991.07000013,0.00016192,2]
[351229523,1738456240523,-1061.31826623,0.00016192,2]
[351229524,1738456240536,-1078.2000003,0.00016192,2]
[351229525,1738456240676,-3408.2034,0.00016192,2]
[351229526,1738456240689,-684.72117982,0.00016192,2]
[351229527,1738456240706,-9102.58844109,0.00016192,2]
[351229528,1738456240717,-69722.14984416,0.00016192,2]
[351229529,1738456240740,-607.36,0.00016192,2]
[351229551,1738456242838,-3104.7004,0.00016192,2]
[351229553,1738456243866,-359.20787404,0.00016192,2]
[351229554,1738456243900,-6007.14434187,0.00016192,2]
[351229555,1738456244000,-9127.24,0.00016192,2]
[351229556,1738456244012,-604997.9556769,0.00016192,2]
[351229559,1738456245757,-472.10055214,0.00016092,2]
[351229560,1738456245767,-27.89944786,0.00016192,2]
[351229561,1738456245985,-1353490.13014046,0.00016192,2]
[351229564,1738456291374,150.0,0.00021403,120]
[351229565,1738456350884,150.0,0.00022686,120]
[351229568,1738456389935,500.0,0.00023,120]
[351229569,1738456396192,500.0,0.00023,120]
[351229570,1738456403230,200.0,0.00023,120]
[351229571,1738456411370,150.0,0.00022911,120]
[351229572,1738456470869,150.0,0.00021811,120]
[351229579,1738456530775,150.0,0.00020639,120]
[351229580,1738456580744,157.03,0.00016658,30]
[351229581,1738456590739,150.0,0.00020158,120]
[351229582,1738456650748,150.0,0.00020469,120]
[351229584,1738456653774,3527.31598495,0.00017,30]
[351229585,1738456654074,407.72,0.00012638,2]
[351229587,1738456710786,150.0,0.00019279,120]
[351229589,1738456770719,150.0,0.00018637,120]
[351229591,1738456831310,150.0,0.00019598,120]
[351229593,1738456890826,150.0,0.00019111,120]
[351229595,1738456950761,150.0,0.00022302,120]
[351229597,1738456991041,500.0,0.00023,120]
[351229598,1738456997140,500.0,0.00023,120]
[351229599,1738457004261,200.0,0.00023,120]
[351229600,1738457070748,150.0,0.00021336,120]
[351229601,1738457129811,334.9766941,0.00023,120]
[351229602,1738457130830,150.0,0.00022174,120]
[351229603,1738457138693,1566.74139471,0.00023,120]
[351229604,1738457158028,1032.26092251,0.00023,120]
[351229605,1738457190765,150.0,0.00022275,120]
[351229606,1738457251344,150.0,0.00021045,120]
[351229607,1738457310727,150.0,0.0002212,120]
[351229613,1738457370859,150.0,0.00022406,120]
[351229619,1738457401425,180.99,0.00010137,2]
[351229620,1738457431376,150.0,0.00022419,120]
[351229628,1738457431989,-708.95574771,0.0001387,2]
[351229629,1738457431999,-500.0,0.00013948,2]
[351229630,1738457432009,-900.0,0.00013948,2]
[351229631,1738457432018,-261.1,0.00014377,2]
[351229632,1738457432028,-2798.62,0.00014388,2]
[351229633,1738457432038,-365.11,0.00014501,2]
[351229634,1738457432048,-1243.79,0.00014521,2]
[351229635,1738457432057,-250.0,0.00014527,2]
[351229636,1738457432067,-200.0,0.0001453,2]
[351229637,1738457432077,-500.0,0.00014559,2]
[351229638,1738457432087,-170.57,0.00014562,2]
[351229639,1738457432096,-300.0,0.00014566,2]
[351229640,1738457432105,-9691.63825229,0.00014567,2]
[351229641,1738457432122,-14208.36174771,0.00014567,2]
[351229642,1738457432131,-1000.0,0.00014567,2]
[351229643,1738457432140,-476.1,0.00014579,2]
[351229644,1738457432150,-150.0,0.00014591,2]
[351229645,1738457432160,-1059.0,0.000146,2]
[351229646,1738457432170,-407.72,0.00014902,2]
[351229647,1738457432179,-177.1,0.00014998,2]
[351229648,1738457432189,-261.1,0.00015096,2]
[351229649,1738457432199,-260.42388061,0.00015224,2]
[351229650,1738457432208,-246.6,0.00015257,2]
[351229651,1738457432218,-900.0,0.00015318,2]
[351229652,1738457432227,-1059.0,0.00015329,2]
[351229653,1738457432237,-150.0,0.00015343,2]
[351229654,1738457432246,-150.0,0.00015343,2]
[351229655,1738457432255,-300.0,0.00015808,2]
[351229656,1738457432265,-158.56562355,0.00015808,2]
[351229657,1738457432274,-261.1,0.00015815,2]
[351229658,1738457432284,-5178.734492,0.000159,2]
[351229659,1738457432293,-400.31558758,0.0001591,2]
[351229660,1738457432303,-179.48442171,0.00015945,2]
[351229661,1738457432313,-377.0,0.00015948,2]
[351229662,1738457432322,-1361.59905468,0.00015992,2]
[351229663,1738457432331,-1491.9426,0.00015992,2]
[351229664,1738457432340,-387.3388,0.00015992,2]
[351229665,1738457432349,-1481.653,0.00015992,2]
[351229666,1738457432358,-154.7971,0.00015992,2]
[351229667,1738457432368,-6372.1901,0.00015992,2]
[351229668,1738457432378,-3486.0,0.00016,2]
[351229670,1738457432387,-1566.78270012,0.00016,4]
[351229672,1738457432397,-5178.73449175,0.00016003,2]
[351229674,1738457432406,-158.56562355,0.00016027,2]
[351229676,1738457432415,-1061.34881,0.0001603,2]
[351229677,1738457432425,-1361.59905467,0.0001603,2]
[351229679,1738457432435,-568.0,0.00016058,2]
[351229681,1738457432447,-500.0,0.00016063,2]
[351229684,1738457432465,-1361.59905467,0.00016069,2]
[351229687,1738457432483,-150.0,0.00016082,2]
[351229690,1738457432501,-791.7344,0.00016092,2]
[351229692,1738457432517,-561789.0474,0.00016092,2]
[351229695,1738457432538,-6575.5289,0.00016092,2]
[351229696,1738457432556,-221.5144,0.00016092,2]
[351229697,1738457432573,-1059.0,0.00016096,2]
[351229698,1738457432592,-13887.3949,0.000161,2]
[351229699,1738457432608,-157.63265749,0.000161,2]
[351229700,1738457432626,-170.57581859,0.000161,2]
[351229701,1738457432648,-5178.73449175,0.00016107,2]
[351229702,1738457432668,-1361.59905467,0.00016107,2]
[351229705,1738457432685,-150.99,0.00016116,2]
[351229707,1738457432702,-576.46,0.00016116,2]
[351229710,1738457432716,-1361.59905467,0.00016146,2]
[351229713,1738457432734,-179.48442171,0.00016164,2]
[351229716,1738457432748,-874.994,0.00016168,2]
[351229718,1738457432764,-784.9665228,0.00016181,2]
[351229721,1738457432778,-156.9933046,0.00016181,2]
[351229723,1738457432793,-1939.3229295,0.00016181,2]
[351229726,1738457432807,-1361.59905467,0.00016184,2]
[351229728,1738457432822,-784.9665228,0.00016189,2]
[351229731,1738457432837,-156.9933046,0.00016189,2]
[351229733,1738457432851,-1939.3229295,0.00016189,2]
[351229736,1738457432866,-186.55961378,0.0001619,2]
[351229739,1738457432882,-230.16440959,0.00016191,2]
[351229741,1738457432897,-150.0,0.00016192,2]
[351229744,1738457432911,-150.0,0.00016192,2]
[351229746,1738457432926,-150.0,0.00016192,2]
[351229749,1738457432940,-150.0,0.00016192,2]
[351229751,1738457432955,-150.0,0.00016192,2]
[351229753,1738457432969,-112165.56018587,0.00016192,2]
[351229755,1738457432984,-11312.00098023,0.00016192,2]
[351229756,1738457432999,-735.37231495,0.00016192,2]
[351229757,1738457433013,-5504.75426133,0.00016192,2]
[351229758,1738457433027,-8030.97394965,0.00016192,2]
[351229759,1738457433043,-100000.0,0.00016192,2]
[351229760,1738457433058,-1000.0,0.00016199,2]
[351229761,1738457433073,-1000.0,0.00016199,2]
[351229762,1738457433089,-639.98,0.00016199,2]
[351229763,1738457433105,-300.0,0.00016199,2]
[351229764,1738457433120,-300.0,0.00016199,2]
[351229765,1738457433135,-300.0,0.00016199,2]
[351229766,1738457433151,-300.0,0.00016199,2]
[351229767,1738457433165,-300.0,0.00016199,2]
[351229768,1738457433181,-300.0,0.00016199,2]
[351229769,1738457433196,-300.0,0.00016199,2]
[351229770,1738457433211,-300.0,0.00016199,2]
[351229771,1738457433225,-300.0,0.00016199,2]
[351229772,1738457433239,-666.0,0.00016199,2]
[351229773,1738457433254,-300.0,0.00016199,2]
[351229774,1738457433268,-300.0,0.00016199,2]
[351229775,1738457433283,-300.0,0.00016199,2]
[351229776,1738457433301,-1885.0,0.000162,2]
[351229777,1738457433315,-1000.0,0.000162,3]
[351229778,1738457433331,-210.98,0.000162,2]
[351229779,1738457433346,-250244.55802192,0.000162,2]
[351229780,1738457433384,-2939.64851248,0.000162,2]
[351229781,1738457433403,-400.86620647,0.000162,2]
[351229782,1738457433421,-5230.0,0.000162,2]
[351229788,1738457437946,-170.265,0.00016058,2]
[351229789,1738457437955,-11572.64609393,0.000162,2]
[351229790,1738457437967,-72212.11478561,0.000162,2]
[351229791,1738457438108,-7245.92600765,0.000162,2]
[351229792,1738457438119,-20623.56142666,0.000162,2]
[351229793,1738457438132,-27856.56033,0.000162,2]
[351229802,1738457440164,-252.653,0.00016058,2]
[351229803,1738457440173,-2928.97272984,0.000162,2]
[351229806,1738457443106,-693.540474,0.000162,2]
[351229807,1738457443162,-1006.459526,0.000162,2]
[351229808,1738457443172,-595195.4657976,0.000162,2]
[351229809,1738457443182,-8796.0303533,0.000162,2]
[351229813,1738457446191,-372.87,0.000162,2]
[351229814,1738457446201,-3816.98234244,0.000162,2]
[351229819,1738457491828,150.0,0.00020121,120]
[351229820,1738457550725,150.0,0.00022654,120]
[351229821,1738457589537,500.0,0.00023,120]
[351229822,1738457594924,451.765079,0.00023,120]
[351229823,1738457600838,200.0,0.00023,120]
[351229824,1738457670718,150.0,0.00022289,120]
[351229825,1738457730739,150.0,0.00022757,120]
[351229826,1738457791325,150.0,0.00021141,120]
[351229828,1738457850918,150.0,0.00022187,120]
[351229829,1738457970811,150.0,0.0002297,120]
[351229830,1738458013775,2011.08,0.00023,120]
[351229831,1738458091320,150.0,0.00021184,120]
[351229832,1738458151349,150.0,0.00020334,120]
[351229833,1738458190496,500.0,0.00023,120]
[351229834,1738458200595,200.0,0.00023,120]
[351229835,1738458210720,150.0,0.00021811,120]
[351229836,1738458270745,150.0,0.0002225,120]
[351229837,1738458287742,161.91,0.00010137,2]
[351229840,1738458331817,150.0,0.00020942,120]
[351229841,1738458391266,150.0,0.00020774,120]
[351229842,1738458450866,150.0,0.00021967,120]
[351229843,1738458510759,150.0,0.00020851,120]
[351229855,1738458570785,150.0,0.00022452,120]
[351229856,1738458630755,150.0,0.00022366,120]
[351229860,1738458632299,-366.94,0.00013331,2]
[351229861,1738458632309,-500.0,0.00013948,2]
[351229862,1738458632319,-211.97520522,0.00013948,2]
[351229863,1738458632393,-588.02479478,0.00013948,2]
[351229864,1738458632402,-1000.0,0.00015214,2]
[351229865,1738458632412,-238.05,0.00015232,2]
[351229866,1738458632423,-197.28,0.00015232,2]